[Event "Titled Tuesday Blitz May 10 Late 2022"]
[White "Rosen, Eric"]
[Black "Karttunen, Mika"]
[WhiteFideId "2032562"]
[BlackFideId "502081"]
[WhiteElo "2738"]
[BlackElo "2554"]
[Result "1-0"]
[Round "04"]
[TimeControl "180+1"]
[Date "2022.05.11"]
[WhiteClock "0:00:07"]
[BlackClock "0:00:30"]

1. d4 {[%clk 0:03:00]}  f5 {[%clk 0:02:55]} 2. Bf4 {[%clk 0:02:59]}  Nf6 {[%clk 0:02:52]} 3. e3 {[%clk 0:02:59]}  e6 {[%clk 0:02:51]} 4. Nf3 {[%clk 0:02:54]}  d5 {[%clk 0:02:51]} 5. Nbd2 {[%clk 0:02:52]}  Bd6 {[%clk 0:02:50]} 6. Bd3 {[%clk 0:02:51]}  O-O {[%clk 0:02:48]} 7. Qe2 {[%clk 0:02:49]}  Qe7 {[%clk 0:02:48]} 8. h3 {[%clk 0:02:47]}  Ne4 {[%clk 0:02:45]} 9. Ne5 {[%clk 0:02:45]}  Nd7 {[%clk 0:02:40]} 10. Ndf3 {[%clk 0:02:22]}  Bb4+ {[%clk 0:02:23]} 11. Kf1 {[%clk 0:01:49]}  Ndf6 {[%clk 0:02:23]} 12. c3 {[%clk 0:01:48]}  Bd6 {[%clk 0:02:20]} 13. Rd1 {[%clk 0:01:38]}  c5 {[%clk 0:02:15]} 14. Bb1 {[%clk 0:01:34]}  Bd7 {[%clk 0:02:08]} 15. Nxd7 {[%clk 0:01:15]}  Nxd7 {[%clk 0:02:01]} 16. h4 {[%clk 0:00:59]}  Ndf6 {[%clk 0:01:50]} 17. Ne5 {[%clk 0:00:52]}  Bxe5 {[%clk 0:01:33]} 18. dxe5 {[%clk 0:00:44]}  Ng4 {[%clk 0:01:34]} 19. f3 {[%clk 0:00:29]}  Ngf2 {[%clk 0:01:33]} 20. Rh2 {[%clk 0:00:24]}  Nxd1 {[%clk 0:01:13]} 21. fxe4 {[%clk 0:00:24]}  Nxe3+ {[%clk 0:01:13]} 22. Qxe3 {[%clk 0:00:23]}  fxe4 {[%clk 0:01:11]} 23. g3 {[%clk 0:00:22]}  b5 {[%clk 0:01:04]} 24. Rf2 {[%clk 0:00:22]}  b4 {[%clk 0:01:05]} 25. cxb4 {[%clk 0:00:21]}  cxb4 {[%clk 0:01:04]} 26. Bc2 {[%clk 0:00:22]}  Rac8 {[%clk 0:01:03]} 27. Bb3 {[%clk 0:00:22]}  a5 {[%clk 0:01:03]} 28. Kg2 {[%clk 0:00:21]}  Qd7 {[%clk 0:01:03]} 29. h5 {[%clk 0:00:21]}  a4 {[%clk 0:01:03]} 30. Bd1 {[%clk 0:00:20]}  h6 {[%clk 0:00:59]} 31. Bg4 {[%clk 0:00:21]}  Qc6 {[%clk 0:00:58]} 32. Rd2 {[%clk 0:00:17]}  Rfd8 {[%clk 0:00:56]} 33. Rd1 {[%clk 0:00:13]}  Qc2+ {[%clk 0:00:55]} 34. Rd2 {[%clk 0:00:14]}  Qc1 {[%clk 0:00:50]} 35. Bxe6+ {[%clk 0:00:13]}  Kh8 {[%clk 0:00:44]} 36. Bxc8 {[%clk 0:00:13]}  Rxc8 {[%clk 0:00:45]} 37. e6 {[%clk 0:00:12]}  Qc6 {[%clk 0:00:23]} 38. Qd4 {[%clk 0:00:06]}  Qxe6 {[%clk 0:00:21]} 39. Qxd5 {[%clk 0:00:06]}  Qe7 {[%clk 0:00:22]} 40. Be3 {[%clk 0:00:04]}  a3 {[%clk 0:00:20]} 41. bxa3 {[%clk 0:00:04]}  bxa3 {[%clk 0:00:20]} 42. Qd4 {[%clk 0:00:04]}  Re8 {[%clk 0:00:20]} 43. Rf2 {[%clk 0:00:05]}  Kg8 {[%clk 0:00:20]} 44. Qc4+ {[%clk 0:00:04]}  Kh7 {[%clk 0:00:20]} 45. Qd4 {[%clk 0:00:04]}  Kg8 {[%clk 0:00:20]} 46. Rd2 {[%clk 0:00:05]}  Qe6 {[%clk 0:00:20]} 47. Qd5 {[%clk 0:00:06]}  Kf7 {[%clk 0:00:20]} 48. Qxe6+ {[%clk 0:00:06]}  Kxe6 {[%clk 0:00:21]} 49. Rd4 {[%clk 0:00:06]}  Ke5 {[%clk 0:00:22]} 50. Ra4 {[%clk 0:00:07]}  Rd8 {[%clk 0:00:22]} 51. Rxa3 {[%clk 0:00:07]}  Rc8 {[%clk 0:00:23]} 52. Kh3 {[%clk 0:00:07]}  Rc2 {[%clk 0:00:23]} 53. Ra5+ {[%clk 0:00:06]}  Ke6 {[%clk 0:00:24]} 54. a4 {[%clk 0:00:07]}  Re2 {[%clk 0:00:24]} 55. Bf4 {[%clk 0:00:07]}  Ra2 {[%clk 0:00:24]} 56. Re5+ {[%clk 0:00:07]}  Kf6 {[%clk 0:00:25]} 57. Rxe4 {[%clk 0:00:07]}  Kf5 {[%clk 0:00:25]} 58. Rb4 {[%clk 0:00:08]}  Kf6 {[%clk 0:00:26]} 59. Rb6+ {[%clk 0:00:07]}  Kf5 {[%clk 0:00:26]} 60. Rb5+ {[%clk 0:00:08]}  Ke4 {[%clk 0:00:26]} 61. Rb4+ {[%clk 0:00:08]}  Kf3 {[%clk 0:00:27]} 62. Be5 {[%clk 0:00:08]}  Rd2 {[%clk 0:00:26]} 63. Rf4+ {[%clk 0:00:08]}  Ke3 {[%clk 0:00:26]} 64. Bd4+ {[%clk 0:00:05]}  Ke2 {[%clk 0:00:26]} 65. Bxg7 {[%clk 0:00:06]}  Kd3 {[%clk 0:00:26]} 66. Kg4 {[%clk 0:00:06]}  Ra2 {[%clk 0:00:27]} 67. Bxh6 {[%clk 0:00:06]}  Re2 {[%clk 0:00:27]} 68. Bg5 {[%clk 0:00:06]}  Re6 {[%clk 0:00:28]} 69. h6 {[%clk 0:00:07]}  Ra6 {[%clk 0:00:29]} 70. h7 {[%clk 0:00:07]}  Rxa4 {[%clk 0:00:30]} 71. Rxa4 {[%clk 0:00:07]} 1-0


[Site "https://www.chess.com"]

[Event "Titled Tuesday Blitz May 10 Late 2022"]
[White "Sadhwani, Raunak"]
[Black "Dimakiling, Oliver"]
[WhiteFideId "35093487"]
[BlackFideId "5202248"]
[WhiteElo "2616"]
[BlackElo "2426"]
[Result "1-0"]
[Round "04"]
[TimeControl "180+1"]
[Date "2022.05.10"]
[WhiteClock "0:00:14"]
[BlackClock "0:00:07"]

1. d4 {[%clk 0:03:00]}  Nf6 {[%clk 0:02:59]} 2. Nf3 {[%clk 0:03:00]}  g6 {[%clk 0:02:59]} 3. Nc3 {[%clk 0:03:00]}  d5 {[%clk 0:02:58]} 4. Bf4 {[%clk 0:03:01]}  c6 {[%clk 0:02:57]} 5. e3 {[%clk 0:02:59]}  Bg7 {[%clk 0:02:56]} 6. h3 {[%clk 0:02:59]}  b6 {[%clk 0:02:54]} 7. Bd3 {[%clk 0:02:56]}  Ba6 {[%clk 0:02:53]} 8. O-O {[%clk 0:02:56]}  Bxd3 {[%clk 0:02:52]} 9. Qxd3 {[%clk 0:02:57]}  O-O {[%clk 0:02:52]} 10. a4 {[%clk 0:02:58]}  a5 {[%clk 0:02:51]} 11. Ne2 {[%clk 0:02:58]}  Nbd7 {[%clk 0:02:50]} 12. b3 {[%clk 0:02:52]}  e6 {[%clk 0:02:48]} 13. c4 {[%clk 0:02:51]}  c5 {[%clk 0:02:47]} 14. Rac1 {[%clk 0:02:51]}  Re8 {[%clk 0:02:46]} 15. Rfd1 {[%clk 0:02:45]}  Qc8 {[%clk 0:02:45]} 16. Ne5 {[%clk 0:02:42]}  Rd8 {[%clk 0:02:31]} 17. Nxd7 {[%clk 0:02:37]}  Rxd7 {[%clk 0:02:27]} 18. Be5 {[%clk 0:02:36]}  Ne4 {[%clk 0:02:12]} 19. Qb1 {[%clk 0:02:28]}  Bxe5 {[%clk 0:02:09]} 20. dxe5 {[%clk 0:02:29]}  h5 {[%clk 0:01:47]} 21. h4 {[%clk 0:02:29]}  Qc7 {[%clk 0:01:25]} 22. f3 {[%clk 0:02:29]}  Qxe5 {[%clk 0:01:24]} 23. fxe4 {[%clk 0:02:29]}  Rad8 {[%clk 0:01:24]} 24. cxd5 {[%clk 0:02:08]}  exd5 {[%clk 0:01:23]} 25. Qc2 {[%clk 0:02:08]}  dxe4 {[%clk 0:01:16]} 26. Rxd7 {[%clk 0:02:08]}  Rxd7 {[%clk 0:01:16]} 27. Rd1 {[%clk 0:02:09]}  Rxd1+ {[%clk 0:01:01]} 28. Qxd1 {[%clk 0:02:10]}  Qe7 {[%clk 0:01:01]} 29. Qe1 {[%clk 0:01:57]}  Qe6 {[%clk 0:00:59]} 30. Qd1 {[%clk 0:01:51]}  c4 {[%clk 0:00:57]} 31. Nf4 {[%clk 0:01:33]}  Qc6 {[%clk 0:00:48]} 32. Qd8+ {[%clk 0:01:28]}  Kh7 {[%clk 0:00:48]} 33. bxc4 {[%clk 0:01:26]}  Qxc4 {[%clk 0:00:47]} 34. Nd5 {[%clk 0:01:08]}  Qxa4 {[%clk 0:00:42]} 35. Nf6+ {[%clk 0:01:08]}  Kg7 {[%clk 0:00:41]} 36. Ne8+ {[%clk 0:01:08]}  Kf8 {[%clk 0:00:37]} 37. Nd6+ {[%clk 0:01:07]}  Kg7 {[%clk 0:00:35]} 38. Qxb6 {[%clk 0:00:57]}  Qd1+ {[%clk 0:00:27]} 39. Kh2 {[%clk 0:00:57]}  a4 {[%clk 0:00:26]} 40. Qd8 {[%clk 0:00:51]}  Qb3 {[%clk 0:00:19]} 41. Ne8+ {[%clk 0:00:52]}  Kf8 {[%clk 0:00:19]} 42. Nf6+ {[%clk 0:00:52]}  Kg7 {[%clk 0:00:19]} 43. Nd7 {[%clk 0:00:53]}  Qb4 {[%clk 0:00:15]} 44. Qf6+ {[%clk 0:00:38]}  Kg8 {[%clk 0:00:15]} 45. Ne5 {[%clk 0:00:27]}  Qb3 {[%clk 0:00:13]} 46. Qd8+ {[%clk 0:00:19]}  Kg7 {[%clk 0:00:13]} 47. Qd4 {[%clk 0:00:19]}  Kg8 {[%clk 0:00:12]} 48. Nd7 {[%clk 0:00:19]}  a3 {[%clk 0:00:08]} 49. Nf6+ {[%clk 0:00:19]}  Kf8 {[%clk 0:00:09]} 50. Nd5 {[%clk 0:00:20]}  Kg8 {[%clk 0:00:07]} 51. Ne7+ {[%clk 0:00:19]}  Kf8 {[%clk 0:00:07]} 52. Nc6 {[%clk 0:00:19]}  Kg8 {[%clk 0:00:07]} 53. Ne7+ {[%clk 0:00:17]}  Kf8 {[%clk 0:00:07]} 54. Nd5 {[%clk 0:00:18]}  Kg8 {[%clk 0:00:07]} 55. Nf6+ {[%clk 0:00:18]}  Kf8 {[%clk 0:00:07]} 56. Qd8+ {[%clk 0:00:12]}  Kg7 {[%clk 0:00:07]} 57. Nd7 {[%clk 0:00:11]}  Qb4 {[%clk 0:00:08]} 58. Qf6+ {[%clk 0:00:12]}  Kg8 {[%clk 0:00:07]} 59. Qe5 {[%clk 0:00:12]}  a2 {[%clk 0:00:07]} 60. Qe8+ {[%clk 0:00:12]}  Kg7 {[%clk 0:00:07]} 61. Qe5+ {[%clk 0:00:13]}  Kg8 {[%clk 0:00:07]} 62. Nf6+ {[%clk 0:00:13]}  Kf8 {[%clk 0:00:07]} 63. Nd5 {[%clk 0:00:14]}  Qb1 {[%clk 0:00:07]} 64. Qh8# {[%clk 0:00:14]} 1-0


[Site "https://www.chess.com"]

[Event "Titled Tuesday Blitz May 10 Late 2022"]
[White "Sarana, Alexey"]
[Black "Dreev, Aleksey"]
[WhiteFideId "24133795"]
[BlackFideId "4100107"]
[WhiteElo "2666"]
[BlackElo "2625"]
[Result "1/2-1/2"]
[Round "04"]
[TimeControl "180+1"]
[Date "2022.05.10"]
[WhiteClock "0:00:19"]
[BlackClock "0:00:16"]

1. d4 {[%clk 0:02:38]}  d5 {[%clk 0:02:59]} 2. c4 {[%clk 0:02:37]}  e6 {[%clk 0:02:59]} 3. Nc3 {[%clk 0:02:38]}  Nf6 {[%clk 0:02:59]} 4. cxd5 {[%clk 0:02:38]}  exd5 {[%clk 0:02:59]} 5. Bg5 {[%clk 0:02:39]}  c6 {[%clk 0:02:59]} 6. e3 {[%clk 0:02:39]}  Be7 {[%clk 0:02:59]} 7. Bd3 {[%clk 0:02:40]}  h6 {[%clk 0:02:59]} 8. Bf4 {[%clk 0:02:37]}  O-O {[%clk 0:02:58]} 9. Nf3 {[%clk 0:02:33]}  Bd6 {[%clk 0:02:50]} 10. Bxd6 {[%clk 0:02:24]}  Qxd6 {[%clk 0:02:50]} 11. h3 {[%clk 0:02:25]}  Re8 {[%clk 0:02:49]} 12. O-O {[%clk 0:02:25]}  Be6 {[%clk 0:02:37]} 13. Qc2 {[%clk 0:02:23]}  Nbd7 {[%clk 0:02:36]} 14. b4 {[%clk 0:02:24]}  b5 {[%clk 0:02:23]} 15. a4 {[%clk 0:02:20]}  a6 {[%clk 0:02:24]} 16. Qb3 {[%clk 0:02:11]}  Nb6 {[%clk 0:02:22]} 17. Ra2 {[%clk 0:02:10]}  Ne4 {[%clk 0:02:15]} 18. axb5 {[%clk 0:01:31]}  cxb5 {[%clk 0:02:09]} 19. Rfa1 {[%clk 0:01:25]}  Rec8 {[%clk 0:01:59]} 20. Ne2 {[%clk 0:01:05]}  Nc4 {[%clk 0:01:58]} 21. Nf4 {[%clk 0:00:59]}  Rc6 {[%clk 0:01:57]} 22. Qb1 {[%clk 0:00:54]}  Nc3 {[%clk 0:01:53]} 23. Qb3 {[%clk 0:00:46]}  Nxa2 {[%clk 0:01:53]} 24. Rxa2 {[%clk 0:00:47]}  Rac8 {[%clk 0:01:47]} 25. g4 {[%clk 0:00:46]}  Qe7 {[%clk 0:01:40]} 26. Kg2 {[%clk 0:00:45]}  Qf6 {[%clk 0:01:34]} 27. Qd1 {[%clk 0:00:43]}  Qe7 {[%clk 0:01:30]} 28. Qe1 {[%clk 0:00:43]}  Rd8 {[%clk 0:01:19]} 29. Nh5 {[%clk 0:00:38]}  Bc8 {[%clk 0:01:17]} 30. Nf4 {[%clk 0:00:38]}  Qd6 {[%clk 0:01:06]} 31. Qb1 {[%clk 0:00:37]}  Re8 {[%clk 0:01:04]} 32. Qb3 {[%clk 0:00:36]}  Rc7 {[%clk 0:00:54]} 33. Re2 {[%clk 0:00:34]}  Rce7 {[%clk 0:00:52]} 34. Nh5 {[%clk 0:00:34]}  g6 {[%clk 0:00:47]} 35. Ng3 {[%clk 0:00:33]}  Bd7 {[%clk 0:00:45]} 36. Qb1 {[%clk 0:00:33]}  Kg7 {[%clk 0:00:45]} 37. Ra2 {[%clk 0:00:31]}  Bc8 {[%clk 0:00:41]} 38. Re2 {[%clk 0:00:31]}  Qf6 {[%clk 0:00:33]} 39. Qc1 {[%clk 0:00:29]}  Rc7 {[%clk 0:00:32]} 40. Qe1 {[%clk 0:00:29]}  Bb7 {[%clk 0:00:30]} 41. Ra2 {[%clk 0:00:27]}  Qd6 {[%clk 0:00:29]} 42. Re2 {[%clk 0:00:27]}  Rce7 {[%clk 0:00:29]} 43. Qc1 {[%clk 0:00:27]}  Qc7 {[%clk 0:00:28]} 44. Qe1 {[%clk 0:00:26]}  Bc8 {[%clk 0:00:25]} 45. Qb1 {[%clk 0:00:24]}  Qd6 {[%clk 0:00:25]} 46. Qe1 {[%clk 0:00:24]}  Rc7 {[%clk 0:00:25]} 47. Qb1 {[%clk 0:00:25]}  Qe7 {[%clk 0:00:25]} 48. Qe1 {[%clk 0:00:24]}  Nd6 {[%clk 0:00:25]} 49. Ne5 {[%clk 0:00:24]}  Nc4 {[%clk 0:00:24]} 50. Nf3 {[%clk 0:00:24]}  Bb7 {[%clk 0:00:24]} 51. Qb1 {[%clk 0:00:24]}  Rc6 {[%clk 0:00:24]} 52. Ra2 {[%clk 0:00:22]}  Rf6 {[%clk 0:00:24]} 53. Re2 {[%clk 0:00:21]}  Qd6 {[%clk 0:00:24]} 54. Nh4 {[%clk 0:00:21]}  Bc8 {[%clk 0:00:22]} 55. Nf3 {[%clk 0:00:21]}  Qc7 {[%clk 0:00:21]} 56. Nh4 {[%clk 0:00:20]}  Rc6 {[%clk 0:00:20]} 57. Nf3 {[%clk 0:00:20]}  Rf6 {[%clk 0:00:18]} 58. Nh4 {[%clk 0:00:20]}  Qd6 {[%clk 0:00:17]} 59. Nf3 {[%clk 0:00:19]}  Qc7 {[%clk 0:00:16]} 1/2-1/2


[Site "https://www.chess.com"]

[Event "Titled Tuesday Blitz May 10 Late 2022"]
[White "Sernecki, Franciszek"]
[Black "Sanchez, Robert"]
[WhiteFideId "1169297"]
[BlackFideId "2034360"]
[WhiteElo "2553"]
[BlackElo "2220"]
[Result "0-1"]
[Round "04"]
[TimeControl "180+1"]
[Date "2022.05.11"]
[WhiteClock "0:00:03"]
[BlackClock "0:00:46"]

1. d4 {[%clk 0:02:55]}  d5 {[%clk 0:02:59]} 2. c4 {[%clk 0:02:51]}  c6 {[%clk 0:02:59]} 3. Nc3 {[%clk 0:02:51]}  Nf6 {[%clk 0:03:00]} 4. e3 {[%clk 0:02:50]}  g6 {[%clk 0:02:59]} 5. Nf3 {[%clk 0:02:49]}  Bg7 {[%clk 0:02:59]} 6. Be2 {[%clk 0:02:49]}  O-O {[%clk 0:02:58]} 7. O-O {[%clk 0:02:50]}  Bg4 {[%clk 0:02:57]} 8. Qb3 {[%clk 0:02:42]}  Qb6 {[%clk 0:02:46]} 9. h3 {[%clk 0:02:27]}  Bxf3 {[%clk 0:02:42]} 10. Bxf3 {[%clk 0:02:28]}  Qxb3 {[%clk 0:02:35]} 11. axb3 {[%clk 0:02:29]}  e6 {[%clk 0:02:33]} 12. Bd2 {[%clk 0:02:08]}  Nbd7 {[%clk 0:02:32]} 13. Rfc1 {[%clk 0:01:47]}  Rfd8 {[%clk 0:02:24]} 14. cxd5 {[%clk 0:01:31]}  exd5 {[%clk 0:02:21]} 15. b4 {[%clk 0:01:19]}  a6 {[%clk 0:02:21]} 16. Na4 {[%clk 0:01:18]}  Re8 {[%clk 0:02:17]} 17. Nc5 {[%clk 0:01:14]}  Rab8 {[%clk 0:02:01]} 18. Be1 {[%clk 0:01:05]}  Re7 {[%clk 0:02:01]} 19. g4 {[%clk 0:00:51]}  Ne4 {[%clk 0:01:59]} 20. Bg2 {[%clk 0:00:37]}  f5 {[%clk 0:01:58]} 21. gxf5 {[%clk 0:00:33]}  gxf5 {[%clk 0:01:59]} 22. Bf3 {[%clk 0:00:27]}  f4 {[%clk 0:01:43]} 23. Kf1 {[%clk 0:00:12]}  fxe3 {[%clk 0:01:40]} 24. fxe3 {[%clk 0:00:13]}  Rf8 {[%clk 0:01:32]} 25. Kg2 {[%clk 0:00:11]}  Ng5 {[%clk 0:01:24]} 26. Bg4 {[%clk 0:00:11]}  Nf6 {[%clk 0:01:25]} 27. Bd2 {[%clk 0:00:10]}  Nxg4 {[%clk 0:01:21]} 28. hxg4 {[%clk 0:00:11]}  Bxd4 {[%clk 0:01:20]} 29. Rf1 {[%clk 0:00:09]}  Rxf1 {[%clk 0:01:16]} 30. Rxf1 {[%clk 0:00:10]}  Bxe3 {[%clk 0:01:14]} 31. Bxe3 {[%clk 0:00:10]}  Rxe3 {[%clk 0:01:14]} 32. Nxb7 {[%clk 0:00:11]}  Rb3 {[%clk 0:01:01]} 33. Rf4 {[%clk 0:00:05]}  Rxb2+ {[%clk 0:01:00]} 34. Kg3 {[%clk 0:00:05]}  Ne4+ {[%clk 0:00:59]} 35. Kf3 {[%clk 0:00:05]}  Rb3+ {[%clk 0:00:48]} 36. Kg2 {[%clk 0:00:04]}  Rb2+ {[%clk 0:00:46]} 37. Kf1 {[%clk 0:00:03]}  Rxb4 {[%clk 0:00:46]} 0-1


[Site "https://www.chess.com"]

[Event "Titled Tuesday Blitz May 10 Late 2022"]
[White "Sjugirov, Sanan"]
[Black "Koellner, Ruben Gideon"]
[WhiteFideId "4189302"]
[BlackFideId "12993093"]
[WhiteElo "2602"]
[BlackElo "2620"]
[Result "1-0"]
[Round "04"]
[TimeControl "180+1"]
[Date "2022.05.10"]
[WhiteClock "0:01:37"]
[BlackClock "0:00:11"]

1. Nf3 {[%clk 0:03:00]}  Nf6 {[%clk 0:02:51]} 2. c4 {[%clk 0:03:00]}  e6 {[%clk 0:02:51]} 3. Nc3 {[%clk 0:03:00]}  d5 {[%clk 0:02:52]} 4. e3 {[%clk 0:03:01]}  Be7 {[%clk 0:02:50]} 5. b3 {[%clk 0:03:01]}  c5 {[%clk 0:02:49]} 6. cxd5 {[%clk 0:03:01]}  exd5 {[%clk 0:02:48]} 7. d4 {[%clk 0:03:00]}  b6 {[%clk 0:02:48]} 8. Bb2 {[%clk 0:03:00]}  O-O {[%clk 0:02:47]} 9. Be2 {[%clk 0:02:59]}  Be6 {[%clk 0:02:48]} 10. O-O {[%clk 0:02:59]}  Nbd7 {[%clk 0:02:48]} 11. Rc1 {[%clk 0:02:57]}  Rc8 {[%clk 0:02:45]} 12. h3 {[%clk 0:02:54]}  Ne4 {[%clk 0:02:37]} 13. Nxe4 {[%clk 0:02:48]}  dxe4 {[%clk 0:02:37]} 14. Nd2 {[%clk 0:02:48]}  f5 {[%clk 0:02:33]} 15. Bc4 {[%clk 0:02:22]}  Bxc4 {[%clk 0:02:21]} 16. Nxc4 {[%clk 0:02:23]}  Bf6 {[%clk 0:02:15]} 17. Nd6 {[%clk 0:02:19]}  Rb8 {[%clk 0:01:37]} 18. Nxf5 {[%clk 0:02:19]}  cxd4 {[%clk 0:01:36]} 19. Bxd4 {[%clk 0:02:18]}  Bxd4 {[%clk 0:01:32]} 20. Nxd4 {[%clk 0:02:19]}  Nc5 {[%clk 0:01:31]} 21. Nc6 {[%clk 0:02:15]}  Qxd1 {[%clk 0:01:30]} 22. Rfxd1 {[%clk 0:02:16]}  Rb7 {[%clk 0:01:23]} 23. Rc4 {[%clk 0:02:16]}  Rbf7 {[%clk 0:01:17]} 24. Rd2 {[%clk 0:02:15]}  h6 {[%clk 0:01:05]} 25. Ne5 {[%clk 0:02:10]}  Rf5 {[%clk 0:01:05]} 26. Ng6 {[%clk 0:02:10]}  R8f7 {[%clk 0:01:03]} 27. b4 {[%clk 0:02:00]}  Nd3 {[%clk 0:01:02]} 28. f4 {[%clk 0:01:58]}  R5f6 {[%clk 0:00:23]} 29. Rxe4 {[%clk 0:01:55]}  Nxb4 {[%clk 0:00:23]} 30. Ne5 {[%clk 0:01:48]}  Nc6 {[%clk 0:00:17]} 31. Nxf7 {[%clk 0:01:47]}  Rxf7 {[%clk 0:00:18]} 32. Rd6 {[%clk 0:01:46]}  Na5 {[%clk 0:00:15]} 33. Red4 {[%clk 0:01:44]}  Rc7 {[%clk 0:00:13]} 34. Rd7 {[%clk 0:01:41]}  Rc1+ {[%clk 0:00:13]} 35. Kh2 {[%clk 0:01:42]}  Nc6 {[%clk 0:00:13]} 36. R4d6 {[%clk 0:01:41]}  Rc5 {[%clk 0:00:12]} 37. Rg6 {[%clk 0:01:40]}  Kf8 {[%clk 0:00:11]} 38. Rgxg7 {[%clk 0:01:40]}  Ke8 {[%clk 0:00:11]} 39. Rb7 {[%clk 0:01:38]}  Kf8 {[%clk 0:00:11]} 40. Rgc7 {[%clk 0:01:38]}  Ke8 {[%clk 0:00:10]} 41. Rc8+ {[%clk 0:01:37]}  Nd8 {[%clk 0:00:10]} 42. Rxc5 {[%clk 0:01:37]}  bxc5 {[%clk 0:00:11]} 43. Rxa7 {[%clk 0:01:37]} 1-0


[Site "https://www.chess.com"]

[Event "Titled Tuesday Blitz May 10 Late 2022"]
[White "Suleymanli, Aydin"]
[Black "Fedoseev, Vladimir"]
[WhiteFideId "13413937"]
[BlackFideId "24130737"]
[WhiteElo "2481"]
[BlackElo "2726"]
[Result "0-1"]
[Round "04"]
[TimeControl "180+1"]
[Date "2022.05.10"]
[WhiteClock "0:00:04"]
[BlackClock "0:00:22"]

1. d4 {[%clk 0:03:00]}  Nf6 {[%clk 0:02:30]} 2. Bg5 {[%clk 0:02:57]}  e6 {[%clk 0:02:29]} 3. e4 {[%clk 0:02:55]}  h6 {[%clk 0:02:29]} 4. Bxf6 {[%clk 0:02:55]}  Qxf6 {[%clk 0:02:29]} 5. Nc3 {[%clk 0:02:53]}  Bb4 {[%clk 0:02:27]} 6. Qd2 {[%clk 0:02:53]}  d5 {[%clk 0:02:21]} 7. e5 {[%clk 0:02:18]}  Qd8 {[%clk 0:02:20]} 8. a3 {[%clk 0:02:14]}  Be7 {[%clk 0:02:18]} 9. Nf3 {[%clk 0:02:14]}  c5 {[%clk 0:02:17]} 10. dxc5 {[%clk 0:02:14]}  Bxc5 {[%clk 0:02:17]} 11. Bd3 {[%clk 0:02:04]}  Nc6 {[%clk 0:02:15]} 12. Qf4 {[%clk 0:02:03]}  Bd7 {[%clk 0:02:08]} 13. Qg3 {[%clk 0:01:55]}  Kf8 {[%clk 0:01:39]} 14. O-O {[%clk 0:01:48]}  a6 {[%clk 0:01:38]} 15. Ne2 {[%clk 0:01:41]}  Ne7 {[%clk 0:01:36]} 16. Nf4 {[%clk 0:01:33]}  Bb5 {[%clk 0:01:32]} 17. Nh5 {[%clk 0:01:32]}  g6 {[%clk 0:01:23]} 18. Nf6 {[%clk 0:01:07]}  Bxd3 {[%clk 0:01:17]} 19. cxd3 {[%clk 0:01:08]}  Nc6 {[%clk 0:01:16]} 20. h4 {[%clk 0:00:51]}  Be7 {[%clk 0:01:14]} 21. Ng4 {[%clk 0:00:43]}  Qb6 {[%clk 0:01:11]} 22. Rab1 {[%clk 0:00:34]}  Nd4 {[%clk 0:01:08]} 23. Nxd4 {[%clk 0:00:20]}  Qxd4 {[%clk 0:01:09]} 24. Rfc1 {[%clk 0:00:13]}  h5 {[%clk 0:00:59]} 25. Nf6 {[%clk 0:00:07]}  Bxf6 {[%clk 0:00:59]} 26. exf6 {[%clk 0:00:07]}  Qxf6 {[%clk 0:00:59]} 27. Rc7 {[%clk 0:00:08]}  b5 {[%clk 0:00:53]} 28. Rbc1 {[%clk 0:00:07]}  Kg7 {[%clk 0:00:52]} 29. R1c6 {[%clk 0:00:07]}  Rhe8 {[%clk 0:00:50]} 30. b4 {[%clk 0:00:04]}  a5 {[%clk 0:00:45]} 31. Rc5 {[%clk 0:00:03]}  axb4 {[%clk 0:00:45]} 32. axb4 {[%clk 0:00:04]}  Ra1+ {[%clk 0:00:40]} 33. Kh2 {[%clk 0:00:04]}  Ra2 {[%clk 0:00:40]} 34. f3 {[%clk 0:00:03]}  Rd2 {[%clk 0:00:34]} 35. Rxb5 {[%clk 0:00:03]}  Rxd3 {[%clk 0:00:34]} 36. Rbb7 {[%clk 0:00:04]}  Rf8 {[%clk 0:00:34]} 37. b5 {[%clk 0:00:04]}  Rd4 {[%clk 0:00:34]} 38. Kh3 {[%clk 0:00:03]}  e5 {[%clk 0:00:25]} 39. Rc6 {[%clk 0:00:02]}  Qf5+ {[%clk 0:00:24]} 40. Kh2 {[%clk 0:00:03]}  Rf4 {[%clk 0:00:24]} 41. Re7 {[%clk 0:00:03]}  d4 {[%clk 0:00:23]} 42. b6 {[%clk 0:00:03]}  d3 {[%clk 0:00:22]} 43. b7 {[%clk 0:00:04]}  d2 {[%clk 0:00:22]} 44. Rd6 {[%clk 0:00:04]}  Rd4 {[%clk 0:00:22]} 0-1


[Site "https://www.chess.com"]

[Event "Titled Tuesday Blitz May 10 Late 2022"]
[White "Tanenbaum, Zachary"]
[Black "Grave, Jacob Templen"]
[WhiteFideId "2060850"]
[BlackFideId "1542656"]
[WhiteElo "2685"]
[BlackElo "2418"]
[Result "1-0"]
[Round "04"]
[TimeControl "180+1"]
[Date "2022.05.11"]
[WhiteClock "0:01:06"]
[BlackClock "0:00:01"]

1. e4 {[%clk 0:02:59]}  e5 {[%clk 0:02:55]} 2. Nf3 {[%clk 0:03:00]}  Nc6 {[%clk 0:02:54]} 3. Bc4 {[%clk 0:03:00]}  Bc5 {[%clk 0:02:47]} 4. c3 {[%clk 0:03:00]}  Nf6 {[%clk 0:02:47]} 5. d3 {[%clk 0:03:00]}  d6 {[%clk 0:02:43]} 6. Nbd2 {[%clk 0:03:00]}  a6 {[%clk 0:02:42]} 7. a4 {[%clk 0:03:00]}  h6 {[%clk 0:02:39]} 8. Nf1 {[%clk 0:02:59]}  O-O {[%clk 0:02:32]} 9. Ng3 {[%clk 0:02:59]}  Be6 {[%clk 0:02:31]} 10. Bxe6 {[%clk 0:02:59]}  fxe6 {[%clk 0:02:32]} 11. O-O {[%clk 0:02:59]}  Qe8 {[%clk 0:02:24]} 12. Be3 {[%clk 0:02:56]}  Bxe3 {[%clk 0:02:22]} 13. fxe3 {[%clk 0:02:57]}  d5 {[%clk 0:02:12]} 14. Nd2 {[%clk 0:02:56]}  Rd8 {[%clk 0:02:10]} 15. Qe2 {[%clk 0:02:48]}  Qg6 {[%clk 0:02:03]} 16. Rf3 {[%clk 0:02:41]}  Rd7 {[%clk 0:01:51]} 17. Raf1 {[%clk 0:02:40]}  Rdf7 {[%clk 0:01:51]} 18. b4 {[%clk 0:02:36]}  d4 {[%clk 0:01:44]} 19. b5 {[%clk 0:02:32]}  axb5 {[%clk 0:01:26]} 20. axb5 {[%clk 0:02:33]}  Na7 {[%clk 0:01:11]} 21. Nc4 {[%clk 0:02:24]}  Nd7 {[%clk 0:01:06]} 22. cxd4 {[%clk 0:01:27]}  exd4 {[%clk 0:01:01]} 23. Qb2 {[%clk 0:01:22]}  Rxf3 {[%clk 0:00:52]} 24. Rxf3 {[%clk 0:01:22]}  Rxf3 {[%clk 0:00:38]} 25. gxf3 {[%clk 0:01:23]}  dxe3 {[%clk 0:00:19]} 26. Qd4 {[%clk 0:01:22]}  Nxb5 {[%clk 0:00:10]} 27. Qxd7 {[%clk 0:01:21]}  e2 {[%clk 0:00:05]} 28. Kf2 {[%clk 0:01:19]}  Nc3 {[%clk 0:00:05]} 29. Ne5 {[%clk 0:01:13]}  Qg5 {[%clk 0:00:05]} 30. Qxe6+ {[%clk 0:01:11]}  Kh7 {[%clk 0:00:04]} 31. Qf5+ {[%clk 0:01:07]}  Qxf5 {[%clk 0:00:03]} 32. Nxf5 {[%clk 0:01:08]}  b5 {[%clk 0:00:03]} 33. Nd4 {[%clk 0:01:05]}  b4 {[%clk 0:00:02]} 34. Nxe2 {[%clk 0:01:06]}  b3 {[%clk 0:00:01]} 35. Nxc3 {[%clk 0:01:06]} 1-0


[Site "https://www.chess.com"]